bitfinex/quotes_BTCUSD_20250608
["timestamp","ask_amount","ask_price","bid_price","bid_amount"]
[1749390326041,0.01643868,105940.0,105930.0,1.47880796]
[1749390327244,0.01643859,105940.0,105930.0,1.47880796]
[1749390330049,0.007,105940.0,105930.0,1.47880796]
[1749390330340,0.01643859,105940.0,105930.0,1.47880796]
[1749390330698,0.007,105940.0,105930.0,1.47880796]
[1749390330897,0.01643859,105940.0,105930.0,1.47880796]
[1749390331125,0.01643868,105940.0,105930.0,1.47880796]
[1749390331333,0.01643859,105940.0,105930.0,1.47880796]
[1749390331923,0.03531621,105940.0,105930.0,1.10224796]
[1749390332104,0.03531621,105940.0,105930.0,1.47868796]
[1749390333837,0.04475515,105940.0,105930.0,1.47864796]
[1749390334523,0.03531612,105940.0,105930.0,1.47864796]
[1749390334758,0.04475515,105940.0,105930.0,1.47864796]
[1749390335685,0.03531612,105940.0,105930.0,1.47864796]
[1749390335915,0.04475515,105940.0,105930.0,1.47864796]
[1749390336140,0.03531612,105940.0,105930.0,1.47864796]
[1749390336363,0.04475515,105940.0,105930.0,1.47864796]
[1749390337742,0.04475506,105940.0,105930.0,1.47864796]
[1749390338399,0.05419418,105940.0,105930.0,1.47864796]
[1749390338607,0.04475506,105940.0,105930.0,1.47864796]
[1749390338874,0.03531612,105940.0,105930.0,1.47864796]
[1749390339352,0.04475515,105940.0,105930.0,1.47864796]
[1749390340134,0.04475506,105940.0,105930.0,1.47864796]
[1749390341518,0.05419418,105940.0,105930.0,1.47864796]
[1749390341712,0.04475506,105940.0,105930.0,1.47864796]
[1749390341943,0.05419418,105940.0,105930.0,1.47864796]
[1749390342231,0.04475515,105940.0,105930.0,1.47864796]
[1749390342457,0.03531612,105940.0,105930.0,1.47864796]
[1749390342692,0.05419427,105940.0,105930.0,1.96800796]
[1749390342907,0.05419489,105940.0,105930.0,1.96800796]
[1749390343121,0.03531656,105940.0,105930.0,1.96800796]
[1749390343535,0.04475568,105940.0,105930.0,1.96800796]
[1749390344159,0.24686425,105940.0,105930.0,0.39713859]
[1749390344367,0.24686425,105940.0,105930.0,0.77349859]
[1749390344604,0.24686425,105940.0,105930.0,0.48239859]
[1749390346844,0.24686425,105940.0,105930.0,0.48243859]
[1749390351520,0.24686425,105940.0,105930.0,0.48239859]
[1749390353375,0.24686425,105940.0,105930.0,0.38475058]
[1749390354267,0.24686425,105940.0,105930.0,0.00835058]
[1749390354544,0.24686425,105940.0,105930.0,0.38471058]
[1749390355479,0.24686425,105940.0,105930.0,0.47211764]
[1749390356643,0.24686425,105940.0,105930.0,0.38471058]
[1749390358482,0.23126425,105940.0,105930.0,0.38471058]
[1749390358686,0.21466425,105940.0,105930.0,0.38471058]
[1749390359085,0.23116425,105940.0,105930.0,0.38471058]
[1749390359497,0.24686425,105940.0,105930.0,0.38471058]
[1749390363622,0.24686425,105940.0,105930.0,0.09659058]
[1749390363853,0.24686425,105940.0,105930.0,0.38475058]
[1749390368143,0.24686425,105940.0,105930.0,0.00835058]
[1749390368438,0.34326373,105940.0,105930.0,0.00835058]
[1749390368671,0.36090908,105940.0,105930.0,0.29651058]
[1749390369140,0.36091403,105940.0,105930.0,0.00835058]
[1749390369391,0.36090513,105940.0,105930.0,0.00835058]
[1749390369822,0.70090513,105940.0,105930.0,0.00835058]
[1749390370035,0.72352852,105940.0,105930.0,0.00835058]
[1749390370234,0.72352857,105940.0,105930.0,0.00835058]
[1749390370657,0.7058867,105940.0,105930.0,0.00835058]
[1749390370872,0.72352858,105940.0,105930.0,0.00835058]
[1749390371510,0.75180729,105940.0,105930.0,0.00835058]
[1749390371919,0.75842347,105940.0,105930.0,0.00835058]
[1749390372118,0.75180766,105940.0,105930.0,0.00835058]
[1749390372327,0.75842356,105940.0,105930.0,0.00835058]
[1749390372475,0.85482304,105940.0,105930.0,0.00835058]
[1749390372690,0.75842356,105940.0,105930.0,0.00835058]
[1749390373089,0.79614695,105940.0,105930.0,0.00835058]
[1749390373269,0.76786855,105940.0,105930.0,0.00835058]
[1749390373466,0.75021787,105940.0,105930.0,0.00835058]
[1749390373737,0.85765226,105940.0,105930.0,0.00835058]
[1749390373942,0.86835841,105940.0,105930.0,0.00835058]
[1749390374153,0.8926352,105940.0,105930.0,0.00835058]
[1749390374305,0.8642732,105940.0,105930.0,0.00835058]
[1749390374522,0.86427319,105940.0,105930.0,0.00835058]
[1749390374857,1.11313238,105940.0,105930.0,0.00835058]
[1749390375088,1.12541387,105940.0,105930.0,0.00835058]
[1749390375291,1.10279137,105940.0,105930.0,0.00835058]
[1749390375499,1.02899973,105940.0,105930.0,0.00835058]
[1749390375650,1.01134945,105940.0,105930.0,0.00835058]
[1749390376036,1.00734945,105940.0,105930.0,0.00835058]
[1749390376280,1.01034945,105940.0,105930.0,0.00835058]
[1749390376491,1.01534945,105940.0,105930.0,0.00835058]
[1749390376684,1.0087306,105940.0,105930.0,0.00835058]
[1749390377096,0.99274162,105940.0,105930.0,0.00835058]
[1749390377289,0.99274161,105940.0,105930.0,0.00835058]
[1749390377503,0.9927416,105940.0,105930.0,0.00835058]
[1749390377789,1.0825224,105940.0,105930.0,0.00835058]
[1749390377960,0.98612292,105940.0,105930.0,0.00835058]
[1749390378157,0.84480056,105940.0,105930.0,0.00835058]
[1749390378930,0.82219207,105940.0,105930.0,0.00835058]
[1749390379918,0.76562673,105940.0,105930.0,0.00835058]
[1749390380127,1.1667562,105940.0,105930.0,0.00835058]
[1749390380366,1.14198673,105940.0,105930.0,0.00835058]
[1749390380902,0.76562673,105940.0,105930.0,0.00835058]
[1749390381025,0.85382673,105940.0,105930.0,0.00835058]
[1749390381644,0.84782673,105940.0,105930.0,0.00835058]
[1749390381847,0.85182673,105940.0,105930.0,0.00835058]
[1749390382436,0.84682673,105940.0,105930.0,0.00835058]
[1749390382892,0.85082673,105940.0,105930.0,0.00835058]
[1749390384702,0.76262673,105940.0,105930.0,0.00835058]
[1749390384903,0.85086673,105940.0,105930.0,0.00835058]
[1749390387219,0.76262673,105940.0,105930.0,0.00835058]
[1749390387513,0.85086673,105940.0,105930.0,0.00835058]
[1749390388862,0.92993412,105940.0,105930.0,0.00835058]
[1749390389086,0.96758526,105940.0,105930.0,0.00835058]
[1749390389298,0.92993412,105940.0,105930.0,0.00835058]
[1749390400137,0.94761891,105940.0,105930.0,0.00835058]
[1749390400300,0.94757891,105940.0,105930.0,0.00835058]
[1749390400509,0.8911022,105940.0,105930.0,0.00835058]
[1749390401013,0.95564305,105940.0,105930.0,0.00835058]
[1749390401204,0.93795826,105940.0,105930.0,0.00835058]
[1749390401392,1.0520433,105940.0,105930.0,0.00835058]
[1749390401592,0.96326055,105940.0,105930.0,0.00835058]
[1749390401792,1.01326055,105940.0,105930.0,0.00835058]
[1749390402053,1.03094608,105940.0,105930.0,0.00835058]
[1749390403298,1.03095787,105940.0,105930.0,0.00835058]
[1749390403668,0.54770329,105920.0,105910.0,0.0422]
[1749390403885,0.73278438,105920.0,105910.0,0.0422]
[1749390404079,0.75048189,105920.0,105910.0,0.0422]
[1749390404982,0.73278438,105920.0,105910.0,0.0422]
[1749390405236,0.75148785,105920.0,105910.0,0.0422]
[1749390405476,0.73378438,105920.0,105910.0,0.0422]
[1749390406120,0.75148785,105920.0,105910.0,0.0422]
[1749390406346,0.73478438,105920.0,105910.0,0.0422]
[1749390406785,0.75248774,105920.0,105910.0,0.0422]
[1749390407004,0.73478438,105920.0,105910.0,0.0422]
[1749390407447,0.76338282,105920.0,105910.0,0.0422]
[1749390408331,0.72561657,105920.0,105910.0,0.08390423]
[1749390408564,0.74331915,105920.0,105910.0,0.0422]
[1749390408801,0.72561657,105920.0,105910.0,0.0422]
[1749390409300,0.74331903,105920.0,105910.0,0.0422]
[1749390409417,0.72561657,105920.0,105910.0,0.0422]
[1749390409602,0.74331903,105920.0,105910.0,0.0422]
[1749390410366,0.72561657,105920.0,105910.0,0.0422]
[1749390412533,0.74332216,105920.0,105910.0,0.0422]
[1749390413622,0.74332216,105920.0,105910.0,0.08390423]
[1749390413824,0.74332216,105920.0,105910.0,0.0422]
[1749390414250,0.74332215,105920.0,105910.0,0.0422]
[1749390414470,0.72561657,105920.0,105910.0,0.0422]
[1749390414678,0.74332215,105920.0,105910.0,0.0422]
[1749390414881,0.74332221,105920.0,105910.0,0.0422]
[1749390415084,0.72561657,105920.0,105910.0,0.0422]
[1749390415298,0.74332221,105920.0,105910.0,0.0422]
[1749390416084,0.72561657,105920.0,105910.0,0.0422]
[1749390416286,0.74332238,105920.0,105910.0,0.33036]
[1749390416682,0.72561657,105920.0,105910.0,0.33036]
[1749390416900,0.7433222,105920.0,105910.0,0.33036]
[1749390417842,0.72561657,105920.0,105910.0,0.33036]
[1749390418037,0.74332216,105920.0,105910.0,0.33036]
[1749390418244,0.72561657,105920.0,105910.0,0.33036]
[1749390418578,0.72561657,105920.0,105910.0,0.364496]
[1749390418579,0.64692244,105920.0,105910.0,0.364496]
[1749390418952,0.64692244,105920.0,105910.0,0.33036]
[1749390419890,0.64692258,105920.0,105910.0,0.33036]
[1749390420103,0.62921709,105920.0,105910.0,0.33036]
[1749390420615,0.64692258,105920.0,105910.0,0.33036]
[1749390420975,0.6469227,105920.0,105910.0,0.33036]
[1749390421371,0.62921709,105920.0,105910.0,0.33036]
[1749390421572,0.6469227,105920.0,105910.0,0.33036]
[1749390422607,0.64692251,105920.0,105910.0,0.33036]
[1749390422921,0.62921709,105920.0,105910.0,0.33036]
[1749390423324,0.64692265,105920.0,105910.0,0.33036]
[1749390423699,0.64692264,105920.0,105910.0,0.33036]
[1749390423878,0.64692264,105920.0,105910.0,0.0422]
[1749390424018,0.62921709,105920.0,105910.0,0.33036]
[1749390424468,0.64692265,105920.0,105910.0,0.33036]
[1749390424865,0.64692265,105920.0,105910.0,0.0422]
[1749390425071,0.64692265,105920.0,105910.0,0.33032]
[1749390425500,0.64692294,105920.0,105910.0,0.33032]
[1749390425703,0.64692275,105920.0,105910.0,0.33032]
[1749390425918,0.64692274,105920.0,105910.0,0.33032]
[1749390426628,0.62921709,105920.0,105910.0,0.33032]
[1749390426754,0.64692274,105920.0,105910.0,0.33032]
[1749390427169,0.62921709,105920.0,105910.0,0.33032]
[1749390427821,0.6469227,105920.0,105910.0,0.33032]
[1749390428197,0.64692274,105920.0,105910.0,0.33032]
[1749390428407,0.62921709,105920.0,105910.0,0.33032]
[1749390428611,0.64692269,105920.0,105910.0,0.33032]
[1749390428817,0.64692242,105920.0,105910.0,0.33032]
[1749390429018,0.64692237,105920.0,105910.0,0.33032]
[1749390429218,0.64692248,105920.0,105910.0,0.33032]
[1749390430153,0.64692246,105920.0,105910.0,0.33032]
[1749390430837,0.62921709,105920.0,105910.0,0.33032]
[1749390431035,0.64692571,105920.0,105910.0,0.33032]
[1749390431713,0.64692443,105920.0,105910.0,0.33032]
[1749390432093,0.62921709,105920.0,105910.0,0.33032]
[1749390432521,0.62921709,105920.0,105910.0,0.29912]
[1749390432930,0.64692448,105920.0,105910.0,0.29912]
[1749390433701,0.74332396,105920.0,105910.0,0.29912]
[1749390433907,0.76338282,105920.0,105910.0,0.29912]
[1749390434554,0.78109031,105920.0,105910.0,0.33072]
[1749390435395,0.76338282,105920.0,105910.0,0.33072]
[1749390435598,0.78108858,105920.0,105910.0,0.33072]
[1749390435855,0.78108857,105920.0,105910.0,0.33072]
[1749390436058,0.78108853,105920.0,105910.0,0.33072]
[1749390436264,0.78108859,105920.0,105910.0,0.33072]
[1749390437237,0.76338282,105920.0,105910.0,0.33072]
[1749390437440,0.78108863,105920.0,105910.0,0.33072]
[1749390437668,0.76338282,105920.0,105910.0,0.33072]
[1749390438272,0.78108859,105920.0,105910.0,0.33072]
[1749390438683,0.78108777,105920.0,105910.0,0.33072]
[1749390438885,0.78116423,105920.0,105910.0,0.33072]
[1749390439085,0.76345928,105920.0,105910.0,0.33072]
[1749390439563,0.78116426,105920.0,105910.0,0.33072]
[1749390440840,0.78116394,105920.0,105910.0,0.33072]
[1749390441053,0.75850028,105920.0,105910.0,0.33072]
[1749390441231,0.7811628,105920.0,105910.0,0.33072]
[1749390441732,0.73017209,105920.0,105910.0,0.33072]
[1749390441912,0.75850014,105920.0,105910.0,0.33072]
[1749390442126,0.74079551,105920.0,105910.0,0.33072]
[1749390442315,0.78116257,105920.0,105910.0,0.33072]
[1749390442511,0.73017208,105920.0,105910.0,0.33072]
[1749390442700,0.75850012,105920.0,105910.0,0.33072]
[1749390442906,0.71246746,105920.0,105910.0,0.33072]
[1749390443110,0.7811615,105920.0,105910.0,0.33072]
[1749390443313,0.78116146,105920.0,105910.0,0.33072]
[1749390443573,0.74339521,105920.0,105910.0,0.33072]
[1749390443927,0.69240557,105920.0,105910.0,0.33072]
[1749390444231,0.72569037,105920.0,105910.0,0.33072]
[1749390444431,0.7433944,105920.0,105910.0,0.33072]
[1749390444881,0.72569037,105920.0,105910.0,0.33072]
[1749390445088,0.7433944,105920.0,105910.0,0.33072]
[1749390445314,0.07069319,105920.0,105910.0,0.81798585]
[1749390445451,0.6860612,105950.0,105930.0,0.02543957]
[1749390445654,0.03099445,105950.0,105940.0,0.79646473]
[1749390445859,0.03099445,105950.0,105940.0,0.89286421]
[1749390446739,0.03099445,105950.0,105940.0,0.92121021]
[1749390446942,0.03499445,105950.0,105940.0,0.92121021]
[1749390447342,0.03099445,105950.0,105940.0,0.92121021]
[1749390447554,0.04143215,105950.0,105940.0,0.92121021]
[1749390447956,0.04143206,105950.0,105940.0,0.92121021]
[1749390448168,0.04243206,105950.0,105940.0,0.92121021]
[1749390448599,0.05186985,105950.0,105940.0,0.92121021]
[1749390448801,0.04243206,105950.0,105940.0,0.92121021]
[1749390449009,0.04243206,105950.0,105940.0,0.93077687]
[1749390449627,0.05186985,105950.0,105940.0,0.93077687]
[1749390450807,0.05186985,105950.0,105940.0,0.85509455]
[1749390451416,0.03299445,105950.0,105940.0,0.85509455]
[1749390451767,0.04243206,105950.0,105940.0,0.46924789]
[1749390451915,0.24063892,105950.0,105940.0,0.22379896]
[1749390452124,0.24063892,105950.0,105940.0,0.70178479]
[1749390452323,0.24063892,105950.0,105940.0,0.71122391]
[1749390452641,0.24063892,105950.0,105940.0,0.32562479]
[1749390452841,0.23120096,105950.0,105940.0,0.70178479]
[1749390453075,0.23120096,105950.0,105940.0,0.32562479]
[1749390453279,0.22176273,105950.0,105940.0,0.50355948]
[1749390453547,0.22176273,105950.0,105940.0,0.57104098]
[1749390453746,0.22176273,105950.0,105940.0,0.18544168]
[1749390453933,0.22176273,105950.0,105940.0,0.56160168]
[1749390456875,0.22176273,105950.0,105940.0,0.57104098]
[1749390459111,0.22176273,105950.0,105940.0,0.18544168]
[1749390459310,0.22176273,105950.0,105940.0,0.56156168]
[1749390460813,0.22176273,105950.0,105940.0,0.18544168]
[1749390460991,0.22176273,105950.0,105940.0,0.56152168]
[1749390461194,0.22176273,105950.0,105940.0,0.18544168]
[1749390461400,0.22176273,105950.0,105940.0,0.50347948]
[1749390461607,0.22176273,105950.0,105940.0,0.10412]
[1749390461811,0.22176273,105950.0,105940.0,0.39208]
[1749390464775,0.22176273,105950.0,105940.0,0.40708]
[1749390465965,0.22176273,105950.0,105940.0,0.69226558]
[1749390466192,0.04243206,105950.0,105940.0,0.81340917]
[1749390466397,0.05186993,105950.0,105940.0,0.81340917]
[1749390467198,0.06130789,105950.0,105940.0,0.81340917]
[1749390467755,0.07074594,105950.0,105940.0,0.81340917]
[1749390468405,0.06130789,105950.0,105940.0,0.81340917]
[1749390471479,0.07074603,105950.0,105940.0,0.81340917]
[1749390471887,0.07074603,105950.0,105940.0,0.43732917]
[1749390472098,0.07074603,105950.0,105940.0,0.81340917]
[1749390472347,0.07074594,105950.0,105940.0,0.81340917]
[1749390473572,0.06130789,105950.0,105940.0,0.81340917]
[1749390474430,0.04243206,105950.0,105940.0,0.81340917]
[1749390474636,0.05186985,105950.0,105940.0,0.81340917]
[1749390475043,0.04243206,105950.0,105940.0,0.81340917]
[1749390475262,0.05186985,105950.0,105940.0,0.81340917]
[1749390475469,0.04243206,105950.0,105940.0,0.81340917]
[1749390477449,0.03299445,105950.0,105940.0,0.81340917]
[1749390478190,0.03299445,105950.0,105940.0,0.84175417]
[1749390479319,0.03299445,105950.0,105940.0,1.13285417]
[1749390479944,0.03299445,105950.0,105940.0,1.62221417]
[1749390480153,0.04243206,105950.0,105940.0,1.62221417]
[1749390481377,0.03299445,105950.0,105940.0,1.62221417]
[1749390481588,0.04243215,105950.0,105940.0,1.62221417]
[1749390483343,0.03299445,105950.0,105940.0,1.62221417]
[1749390483995,0.04243206,105950.0,105940.0,1.62221417]
[1749390484396,0.05186985,105950.0,105940.0,1.62221417]
[1749390484602,0.04243206,105950.0,105940.0,1.62221417]
[1749390485179,0.05186976,105950.0,105940.0,1.62221417]
[1749390486287,0.06130755,105950.0,105940.0,1.62221417]
[1749390486486,0.05186976,105950.0,105940.0,1.62221417]
[1749390487350,0.06130755,105950.0,105940.0,1.62221417]
[1749390487933,0.04243206,105950.0,105940.0,1.62221417]
[1749390488105,0.05186985,105950.0,105940.0,1.62221417]
[1749390489255,0.04243206,105950.0,105940.0,1.62221417]
[1749390489526,0.05186985,105950.0,105940.0,1.62221417]
[1749390490093,0.04243206,105950.0,105940.0,1.62221417]
[1749390490293,0.05186985,105950.0,105940.0,1.62221417]
[1749390490903,0.04243206,105950.0,105940.0,1.62221417]
[1749390491107,0.05186993,105950.0,105940.0,1.62221417]
[1749390491361,0.05186985,105950.0,105940.0,1.62221417]
[1749390492875,0.02478782,105950.0,105940.0,1.62221417]
[1749390493108,0.03422561,105950.0,105940.0,1.62221417]
[1749390494772,0.02478782,105950.0,105940.0,1.62221417]
[1749390494973,0.03422561,105950.0,105940.0,1.62221417]
[1749390495227,0.03422561,105950.0,105940.0,1.59386917]
[1749390495813,0.03422561,105950.0,105940.0,1.21778917]
[1749390496020,0.03422561,105950.0,105940.0,1.59378917]
[1749390496486,0.17471007,106000.0,105990.0,0.04964432]
[1749390496680,0.06358774,106010.0,106000.0,0.55698004]
[1749390496891,0.06358774,106010.0,106000.0,0.95698004]
[1749390496892,0.04094778,106010.0,106000.0,0.95698004]
[1749390497112,0.21521463,106050.0,106000.0,0.95698004]
[1749390497113,0.11546469,106070.0,106060.0,0.21685729]
[1749390497352,0.11652789,106080.0,106070.0,0.21683685]
[1749390497643,0.01884578,106120.0,106100.0,0.18849752]
[1749390497833,0.22498411,106120.0,106090.0,0.36827653]
[1749390498037,0.31313443,106120.0,106100.0,0.09639948]
[1749390498250,0.20733155,106110.0,106100.0,0.09639948]
[1749390498453,0.14733155,106110.0,106100.0,0.40107551]
[1749390498664,0.19095509,106120.0,106100.0,0.40814455]
[1749390498870,0.19095509,106120.0,106110.0,0.29430721]
[1749390498871,0.00247878,106120.0,106110.0,0.29430721]
[1749390499109,0.20439487,106160.0,106150.0,0.2]
[1749390499279,0.20439487,106160.0,106120.0,0.34]
[1749390499280,0.18844812,106130.0,106120.0,0.34]
[1749390499484,0.02542018,106150.0,106120.0,0.40667948]
[1749390499687,0.18843683,106170.0,106140.0,0.09639948]
[1749390499888,0.23270463,106160.0,106150.0,0.09639948]
[1749390500252,4.18e-05,106160.0,106150.0,0.09639948]
[1749390500432,4.18e-05,106160.0,106120.0,0.32334329]
[1749390500433,0.00942027,106150.0,106120.0,0.32334329]
[1749390500656,0.0109,106140.0,106130.0,0.09639948]
[1749390500797,0.03916321,106140.0,106130.0,0.09639948]
[1749390501002,0.003,106150.0,106140.0,0.02826347]
[1749390501331,0.003,106150.0,106140.0,0.30879221]
[1749390501528,0.003,106150.0,106140.0,0.33705568]
[1749390501740,0.005,106160.0,106140.0,0.33705568]
[1749390501741,0.01135064,106180.0,106150.0,0.21667343]
[1749390501939,0.10581709,106180.0,106170.0,0.01883726]
[1749390502091,0.19779536,106170.0,106150.0,0.2166729]
[1749390502290,0.09639948,106180.0,106150.0,0.2166729]
[1749390502556,0.24059989,106190.0,106160.0,0.31916]
[1749390502771,0.24059989,106190.0,106170.0,0.43639948]
[1749390502968,0.24059989,106190.0,106170.0,0.09639948]
[1749390503233,0.2500167,106190.0,106170.0,0.09639948]
[1749390503435,0.0165,106180.0,106170.0,0.09639948]
[1749390503636,0.0324,106180.0,106170.0,0.09639948]
[1749390504039,0.04181717,106180.0,106170.0,0.09639948]
[1749390504301,0.0324,106180.0,106170.0,0.09639948]
[1749390504501,0.03244782,106180.0,106170.0,0.09639948]
[1749390504710,0.03444782,106180.0,106170.0,0.09639948]
[1749390504909,0.05528242,106180.0,106170.0,0.09639948]
[1749390505100,0.05528242,106180.0,106170.0,0.28477661]
[1749390505305,0.05528224,106180.0,106170.0,0.28477661]
[1749390505482,0.07411719,106180.0,106170.0,0.28477661]
[1749390505687,0.04586499,106180.0,106170.0,0.28477661]
[1749390505840,0.03644782,106180.0,106170.0,0.28477661]
[1749390506208,0.06470012,106180.0,106170.0,0.28477661]
[1749390506352,0.04586525,106180.0,106170.0,0.28477661]
[1749390506573,0.06470003,106180.0,106170.0,0.28477661]
[1749390506774,0.05528242,106180.0,106170.0,0.28477661]
[1749390506953,0.05528242,106180.0,106140.0,0.18843037]
[1749390506954,0.0313,106150.0,106140.0,0.18843037]
[1749390507310,0.0313,106150.0,106140.0,0.31309332]
[1749390507667,0.0313,106150.0,106140.0,0.29425127]
[1749390507872,0.0313,106150.0,106140.0,0.30367261]
[1749390508071,0.05014063,106150.0,106140.0,0.004]
[1749390508406,0.57855325,106150.0,106140.0,0.004]
[1749390508605,0.57855325,106150.0,106130.0,0.18844376]
[1749390508606,0.05956285,106140.0,106130.0,0.18844376]
[1749390508807,0.25741536,106140.0,106130.0,0.28484324]
[1749390509008,0.23857322,106140.0,106130.0,0.09639948]
[1749390509215,0.0313,106140.0,106130.0,0.2848476]
[1749390509454,0.05014169,106140.0,106130.0,0.2848476]
[1749390509648,0.24799394,106140.0,106130.0,0.09639948]
[1749390509860,0.23857296,106140.0,106130.0,4.785e-05]
[1749390510062,0.57857296,106140.0,106130.0,4.785e-05]
[1749390510844,0.57857296,106140.0,106130.0,0.00204785]
[1749390511250,0.57957296,106140.0,106130.0,4.785e-05]
[1749390511701,0.57857296,106140.0,106130.0,0.00104785]
[1749390512422,0.57957296,106140.0,106130.0,0.00104785]
[1749390512816,0.57957206,106140.0,106130.0,0.18949597]
[1749390513016,0.57957278,106140.0,106130.0,0.00104785]
[1749390514220,0.6716707,106140.0,106100.0,0.0753473]
[1749390514444,0.23893137,106110.0,106100.0,0.0753473]
[1749390515076,0.57893137,106110.0,106100.0,0.0753473]
[1749390516353,0.02827644,106090.0,106080.0,0.62968134]
[1749390516570,0.04954915,106100.0,106090.0,0.19794505]
[1749390516803,0.04954915,106100.0,106090.0,0.29434461]
[1749390517009,0.05897395,106100.0,106090.0,0.29434461]
[1749390517202,0.25690034,106100.0,106090.0,0.28491866]
[1749390517414,0.2474759,106100.0,106090.0,0.09639948]
[1749390517629,0.24752366,106100.0,106090.0,0.29434461]
[1749390517840,0.0094256,106090.0,106080.0,0.28426818]
[1749390518057,0.23807082,106090.0,106080.0,0.47118614]
[1749390518250,0.04955111,106090.0,106080.0,0.74449697]
[1749390518468,0.05897706,106090.0,106080.0,0.38071048]
[1749390518697,0.23807082,106090.0,106080.0,0.10739948]
[1749390518926,0.23807082,106090.0,106080.0,0.011]
[1749390518927,0.57807082,106090.0,106080.0,0.011]
[1749390519403,0.57807082,106090.0,106080.0,0.015]
[1749390520770,0.57807082,106090.0,106080.0,0.011]
[1749390521014,0.57807082,106090.0,106080.0,0.012]
[1749390521953,0.57807082,106090.0,106080.0,0.011]
[1749390522310,0.57907082,106090.0,106080.0,0.011]
[1749390523088,0.23907082,106090.0,106080.0,0.46015948]
[1749390523291,0.23907082,106090.0,106080.0,0.10739948]
[1749390523465,0.23907082,106090.0,106080.0,0.011]
[1749390523689,0.22964513,106090.0,106080.0,0.10739948]
[1749390524105,0.22964513,106090.0,106080.0,0.60739948]
[1749390525849,0.22964513,106090.0,106080.0,0.511]
[1749390527502,0.56964513,106090.0,106080.0,0.511]
[1749390527653,0.58712498,106090.0,106080.0,0.511]
[1749390527856,0.56964513,106090.0,106080.0,0.511]
[1749390528122,0.5871249,106090.0,106080.0,0.511]
[1749390528260,0.58712468,106090.0,106080.0,0.511]
[1749390529180,0.58712463,106090.0,106080.0,0.511]
[1749390529569,0.58712479,106090.0,106080.0,0.511]
[1749390529744,0.56964513,106090.0,106080.0,0.511]
[1749390530004,0.58712075,106090.0,106080.0,0.511]
[1749390530534,0.60953902,106090.0,106080.0,0.511]
[1749390531111,0.60953047,106090.0,106080.0,0.511]
[1749390531572,0.5920634,106090.0,106080.0,0.511]
[1749390531786,0.60953046,106090.0,106080.0,0.511]
[1749390532566,0.60952968,106090.0,106080.0,0.511]
[1749390532792,0.5920634,106090.0,106080.0,0.511]
[1749390532994,0.6095286,106090.0,106080.0,0.511]
[1749390533194,0.60957619,106090.0,106080.0,0.511]
[1749390534213,0.60957641,106090.0,106080.0,0.511]
[1749390534368,0.5920634,106090.0,106080.0,0.511]
[1749390535281,0.60957706,106090.0,106080.0,0.511]
[1749390535648,0.60957852,106090.0,106080.0,0.511]
[1749390536087,0.5920634,106090.0,106080.0,0.511]
[1749390536489,0.60962433,106090.0,106080.0,0.511]
[1749390537511,0.5920634,106090.0,106080.0,0.511]
[1749390537685,0.60962384,106090.0,106080.0,0.511]
[1749390537895,0.5920634,106090.0,106080.0,0.511]
[1749390538115,0.60962379,106090.0,106080.0,0.511]
[1749390538310,0.5920634,106090.0,106080.0,0.8572]
[1749390538530,0.60962752,106090.0,106080.0,0.8572]
[1749390538732,0.5920634,106090.0,106080.0,0.8572]
[1749390538935,0.60962744,106090.0,106080.0,0.8572]
[1749390539138,0.60962743,106090.0,106080.0,0.8572]
[1749390539352,0.5920634,106090.0,106080.0,0.8572]
[1749390539600,0.60962741,106090.0,106080.0,0.8572]
[1749390539811,0.60965075,106090.0,106080.0,0.8572]
[1749390540222,0.60965071,106090.0,106080.0,0.8572]
[1749390540417,0.60965071,106090.0,106080.0,0.511]
[1749390540655,0.5920634,106090.0,106080.0,0.511]
[1749390540882,0.5920634,106090.0,106080.0,0.85648]
[1749390541299,0.74339703,106090.0,106080.0,0.511]
[1749390541478,0.74339776,106090.0,106080.0,0.511]
[1749390541712,0.78108245,106090.0,106080.0,0.511]
[1749390541965,0.79867231,106090.0,106080.0,0.511]
[1749390542221,0.78108245,106090.0,106080.0,0.511]
[1749390542675,0.79867213,106090.0,106080.0,0.511]
[1749390542890,0.77586736,106090.0,106080.0,0.511]
[1749390543100,0.87650631,106090.0,106080.0,0.45440946]
[1749390543322,0.8941375,106090.0,106080.0,0.33731991]
[1749390543531,0.90483031,106090.0,106080.0,0.33731991]
[1749390543744,0.84895996,106090.0,106080.0,0.24299206]
[1749390543949,0.83132773,106090.0,106080.0,0.24299206]
[1749390544152,0.86659257,106090.0,106080.0,0.24299206]
[1749390544363,1.79711205,106090.0,106080.0,0.19293143]
[1749390544581,1.89610636,106090.0,106080.0,0.15129971]
[1749390544759,1.90110767,106090.0,106080.0,0.15129971]
[1749390545003,1.89610795,106090.0,106080.0,0.15129971]
[1749390545211,1.87847389,106090.0,106080.0,0.15129971]
[1749390545413,1.88347389,106090.0,106080.0,0.15129971]
[1749390545621,1.55690802,106090.0,106080.0,0.12809208]
[1749390545830,1.4021643,106090.0,106080.0,0.12809208]
[1749390546064,1.82102756,106090.0,106080.0,0.12809208]
[1749390546276,1.52730756,106090.0,106080.0,0.12809208]
[1749390546483,1.85323343,106090.0,106080.0,0.12809208]
[1749390546686,1.77145303,106090.0,106080.0,0.12809208]
[1749390546890,1.75384343,106090.0,106080.0,0.12809208]
[1749390547091,1.42789299,106090.0,106080.0,0.12809208]
[1749390547298,1.75356343,106090.0,106080.0,0.12809208]
[1749390547511,1.77117274,106090.0,106080.0,0.12809208]
[1749390547754,1.77117281,106090.0,106080.0,0.12809208]
[1749390547990,1.75316343,106090.0,106080.0,0.12809208]
[1749390548491,1.77057988,106090.0,106080.0,0.12809208]
[1749390548703,1.41028343,106090.0,106080.0,0.12809208]
[1749390548877,1.84920291,106090.0,106080.0,0.12809208]
[1749390549077,1.86681933,106090.0,106080.0,0.12809208]
[1749390549401,1.86653933,106090.0,106080.0,0.12809208]
[1749390549517,1.86649933,106090.0,106080.0,0.12809208]
[1749390549771,1.75248343,106090.0,106080.0,0.12809208]
[1749390549971,1.72009986,106090.0,106080.0,0.12809208]
[1749390550177,1.42789985,106090.0,106080.0,0.12809208]
[1749390550411,1.76973985,106090.0,106080.0,0.12809208]
[1749390550941,1.76973985,106090.0,106080.0,0.11866036]
[1749390551100,1.76972267,106090.0,106080.0,0.11866036]
[1749390551297,1.76972267,106090.0,106080.0,0.10922798]
[1749390551560,1.76972264,106090.0,106080.0,0.10922798]
[1749390551762,1.75212343,106090.0,106080.0,0.0277956]
[1749390551950,1.78731325,106090.0,106080.0,0.0277956]
[1749390552153,0.63796361,106080.0,106070.0,0.011]
[1749390552364,0.92709637,106080.0,106070.0,0.011]
[1749390552504,0.94163784,106080.0,106070.0,0.011]
[1749390552708,0.99794275,106080.0,106070.0,0.011]
[1749390553111,0.92404221,106080.0,106070.0,0.011]
[1749390553321,0.98284073,106080.0,106070.0,0.011]